fUST/lending_fUST_20251230
["ID","MTS","AMOUNT","RATE_DAILY","PERIOD"]
[400079374,1767073849012,-500.0,0.00024383,2]
[400079375,1767073849022,-500.0,0.00024383,2]
[400079376,1767073849118,-500.0,0.00024383,2]
[400079377,1767073849128,-500.0,0.00024383,2]
[400079378,1767073849138,-1406.3,0.00024383,2]
[400079379,1767073849147,-500.0,0.00024434,2]
[400079380,1767073849156,-1860.0,0.00024456,2]
[400079381,1767073849165,-151.0,0.00024489,2]
[400079382,1767073849175,-151.0,0.00024489,2]
[400079383,1767073849184,-191.79576387,0.00024505,2]
[400079384,1767073849193,-500.0,0.00024526,2]
[400079385,1767073849202,-332.3,0.0002453,30]
[400079386,1767073849211,-224.55081306,0.00024645,32]
[400079387,1767073849220,-24364.02650339,0.0002465,2]
[400079388,1767073849229,-151.0,0.0002465,2]
[400079389,1767073849238,-1055.258506,0.0002465,2]
[400079390,1767073849248,-1055.258506,0.0002465,2]
[400079391,1767073849257,-1055.258506,0.0002465,2]
[400079392,1767073849267,-1055.258506,0.0002465,2]
[400079393,1767073849275,-500.15351,0.0002465,2]
[400079394,1767073849285,-500.15351,0.0002465,2]
[400079395,1767073849294,-500.15351,0.0002465,2]
[400079396,1767073849303,-500.15351,0.0002465,2]
[400079397,1767073849313,-151.0,0.0002465,2]
[400079398,1767073849324,-151.0,0.0002465,2]
[400079399,1767073849334,-151.0,0.0002465,2]
[400079400,1767073849343,-151.0,0.0002465,2]
[400079401,1767073849352,-200.0,0.00024657,2]
[400079402,1767073849361,-500.0,0.00024657,2]
[400079403,1767073849372,-500.0,0.00024657,2]
[400079404,1767073849382,-500.0,0.00024657,2]
[400079405,1767073849392,-531.9,0.00024657,2]
[400079406,1767073849403,-500.0,0.00024657,2]
[400079407,1767073849412,-1406.3,0.00024657,2]
[400079408,1767073849422,-641.83651575,0.000247,2]
[400079409,1767073849432,-25451.08,0.000247,3]
[400079410,1767073849441,-167.63,0.000248,7]
[400079411,1767073849450,-151.0,0.000248,7]
[400079412,1767073849459,-151.0,0.000248,7]
[400079413,1767073849468,-151.0,0.000248,7]
[400079414,1767073849477,-151.649323,0.000248,7]
[400079415,1767073849487,-151.0,0.000248,7]
[400079416,1767073849496,-151.0,0.000248,7]
[400079417,1767073849505,-151.0,0.000248,7]
[400079418,1767073849515,-151.0,0.000248,7]
[400079419,1767073849524,-161.798932,0.000248,7]
[400079420,1767073849534,-151.0,0.000248,7]
[400079421,1767073849543,-151.0,0.000248,7]
[400079422,1767073849553,-151.0,0.000248,7]
[400079423,1767073849562,-151.0,0.000248,7]
[400079424,1767073849571,-151.0,0.000248,7]
[400079425,1767073849581,-151.0,0.000248,7]
[400079426,1767073849591,-151.0,0.000248,7]
[400079427,1767073849600,-151.0,0.000248,7]
[400079428,1767073849609,-22653.7839182,0.000248,2]
[400079429,1767073849618,-151.0,0.000249,7]
[400079430,1767073849628,-151.533477,0.000249,7]
[400079431,1767073849638,-151.0,0.000249,7]
[400079432,1767073849647,-151.0,0.000249,7]
[400079433,1767073849656,-151.0,0.000249,7]
[400079434,1767073849666,-151.0,0.000249,7]
[400079435,1767073849675,-154.357484,0.000249,7]
[400079436,1767073849685,-893.168983,0.000249,7]
[400079437,1767073849695,-893.168983,0.000249,7]
[400079438,1767073849705,-893.168983,0.000249,7]
[400079439,1767073849714,-893.168983,0.000249,7]
[400079440,1767073849724,-151.0,0.000249,7]
[400079441,1767073849734,-151.0,0.000249,7]
[400079442,1767073849744,-151.0,0.000249,7]
[400079443,1767073849753,-151.0,0.000249,7]
[400079444,1767073849762,-161.048778,0.000249,7]
[400079445,1767073849772,-151.0,0.000249,7]
[400079446,1767073849781,-238.1177,0.000249,7]
[400079447,1767073849791,-238.1177,0.000249,7]
[400079448,1767073849801,-238.1177,0.000249,7]
[400079449,1767073849810,-238.1177,0.000249,7]
[400079450,1767073849819,-151.0,0.000249,7]
[400079451,1767073849829,-151.0,0.000249,7]
[400079452,1767073849839,-151.0,0.000249,7]
[400079453,1767073849848,-151.0,0.000249,7]
[400079454,1767073849858,-151.0,0.000249,7]
[400079455,1767073849867,-169.771968,0.000249,7]
[400079456,1767073849877,-151.0,0.000249,7]
[400079457,1767073849886,-151.0,0.000249,7]
[400079458,1767073849895,-151.0,0.000249,7]
[400079459,1767073849905,-153.832417,0.000249,7]
[400079460,1767073849914,-153.964995,0.000249,7]
[400079461,1767073849923,-558645.613815,0.000249,2]
[400079462,1767073849933,-429.52122124,0.000249,2]
[400079463,1767073849943,-1055.258506,0.000249,7]
[400079464,1767073849953,-1055.258506,0.000249,7]
[400079465,1767073849963,-1055.258506,0.000249,7]
[400079466,1767073849973,-1055.258506,0.000249,7]
[400079467,1767073849983,-500.15351,0.000249,7]
[400079468,1767073849992,-500.15351,0.000249,7]
[400079469,1767073850002,-500.15351,0.000249,7]
[400079470,1767073850011,-500.15351,0.000249,7]
[400079471,1767073850021,-151.0,0.000249,7]
[400079472,1767073850030,-212.855881,0.000249,7]
[400079473,1767073850040,-151.0,0.000249,7]
[400079474,1767073850049,-498.60412669,0.00024921,2]
[400079475,1767073850059,-700.0,0.00024922,2]
[400079476,1767073850069,-200.0,0.00024931,2]
[400079477,1767073850078,-500.0,0.00024931,2]
[400079478,1767073850088,-188.62587961,0.00024931,2]
[400079479,1767073850098,-500.0,0.00024931,2]
[400079480,1767073850108,-500.0,0.00024931,2]
[400079481,1767073850117,-1406.3,0.00024931,2]
[400079482,1767073850127,-224.55081306,0.00024934,48]
[400079483,1767073850136,-10390.32906121,0.00025,2]
[400079484,1767073850145,-224922.2462527,0.00025,15]
[400079485,1767073850155,-1084.27758702,0.00025,2]
[400079486,1767073850164,-11293.20269687,0.00025,2]
[400079487,1767073850173,-2671.67802026,0.00025,2]
[400079488,1767073850182,-10364.0,0.00025,2]
[400079489,1767073850191,-500.0,0.00025,2]
[400079490,1767073850200,-1123.0,0.00025,5]
[400079491,1767073850209,-1960.0,0.00025004,2]
[400079492,1767073850219,-700.0,0.0002506,7]
[400079493,1767073850228,-579.46320172,0.000252,5]
[400079494,1767073850237,-200.0,0.00025205,2]
[400079495,1767073850247,-500.0,0.00025205,2]
[400079496,1767073850256,-500.0,0.00025205,2]
[400079497,1767073850266,-500.0,0.00025205,2]
[400079498,1767073850275,-1406.3,0.00025205,2]
[400079499,1767073850284,-224.55081306,0.00025224,63]
[400079500,1767073850293,-4701.7430553,0.00025229,2]
[400079501,1767073850303,-700.0,0.00025284,7]
[400079502,1767073850312,-1082.0,0.00025408,2]
[400079503,1767073850321,-1082.0,0.00025446,2]
[400079504,1767073850333,-900.0,0.00025469,3]
[400079505,1767073850343,-200.0,0.00025479,2]
[400079506,1767073850352,-500.0,0.00025479,2]
[400079507,1767073850361,-500.0,0.00025479,2]
[400079508,1767073850370,-500.0,0.00025479,2]
[400079509,1767073850380,-1406.3,0.00025479,2]
[400079510,1767073850389,-1000.0,0.000255,2]
[400079511,1767073850398,-224.55081306,0.00025513,79]
[400079512,1767073850407,-1049.1006809,0.00025528,2]
[400079513,1767073850416,-2060.0,0.00025552,2]
[400079514,1767073850425,-275.104005,0.0002558,2]
[400079515,1767073850435,-404.0,0.00025616,2]
[400079516,1767073850445,-498.46,0.00025645,30]
[400079517,1767073850454,-1075.3697921,0.00025669,2]
[400079518,1767073850463,-311.3580163,0.00025753,2]
[400079519,1767073850472,-500.0,0.00025753,2]
[400079520,1767073850481,-576.92380782,0.00025753,2]
[400079521,1767073850490,-500.0,0.00025753,2]
[400079522,1767073850500,-1406.3,0.00025753,2]
[400079523,1767073850510,-700.0,0.00025759,7]
[400079524,1767073850519,-1000.0,0.0002578,10]
[400079525,1767073850529,-1000.0,0.0002578,10]
[400079526,1767073850538,-1409.93,0.000258,14]
[400079527,1767073850547,-9961.44,0.000258,2]
[400079528,1767073850557,-224.55081306,0.00025803,94]
[400079529,1767073850566,-165.26,0.000259,2]
[400079530,1767073850575,-567.81,0.000259,7]
[400079531,1767073850584,-1082.0,0.00025922,2]
[400079532,1767073850594,-1082.0,0.0002593,2]
[400079533,1767073850603,-39742.13262439,0.00026,10]
[400079534,1767073850612,-529.2410511,0.00026,2]
[400079535,1767073850621,-19900.0,0.00026,2]
[400079536,1767073850632,-161.0,0.00026,5]
[400079537,1767073850641,-151.0,0.00026,7]
[400079538,1767073850651,-151.0,0.00026,7]
[400079539,1767073850660,-151.0,0.00026,7]
[400079540,1767073850670,-151.0,0.00026,7]
[400079541,1767073850679,-153.32338,0.00026,7]
[400079542,1767073850688,-893.168983,0.00026,7]
[400079543,1767073850698,-893.168983,0.00026,7]
[400079544,1767073850707,-893.168983,0.00026,7]
[400079545,1767073850717,-893.168983,0.00026,7]
[400079546,1767073850726,-151.0,0.00026,7]
[400079547,1767073850736,-151.0,0.00026,7]
[400079548,1767073850745,-151.0,0.00026,7]
[400079549,1767073850755,-206.35717,0.00026,7]
[400079550,1767073850764,-151.0,0.00026,7]
[400079551,1767073850774,-238.1177,0.00026,7]
[400079552,1767073850783,-238.1177,0.00026,7]
[400079553,1767073850792,-238.1177,0.00026,7]
[400079554,1767073850802,-238.1177,0.00026,7]
[400079555,1767073850880,-175.83308,0.00026,7]
[400079556,1767073850897,-247.576032,0.00026,7]
[400079557,1767073850907,-151.0,0.00026,7]
[400079558,1767073850916,-151.0,0.00026,7]
[400079559,1767073850926,-151.0,0.00026,7]
[400079560,1767073850935,-151.0,0.00026,7]
[400079561,1767073850945,-151.0,0.00026,7]
[400079562,1767073850955,-188.565093,0.00026,7]
[400079563,1767073850964,-1055.258506,0.00026,7]
[400079564,1767073850973,-1055.258506,0.00026,7]
[400079565,1767073850982,-1055.258506,0.00026,7]
[400079566,1767073850991,-1055.258506,0.00026,7]
[400079567,1767073851000,-500.15351,0.00026,7]
[400079568,1767073851011,-500.15351,0.00026,7]
[400079569,1767073851020,-500.15351,0.00026,7]
[400079570,1767073851029,-500.15351,0.00026,7]
[400079571,1767073851038,-151.0,0.00026,7]
[400079572,1767073851048,-151.0,0.00026,7]
[400079573,1767073851057,-1082.0,0.00026023,2]
[400079574,1767073851066,-500.0,0.00026027,2]
[400079575,1767073851076,-500.0,0.00026027,2]
[400079576,1767073851085,-1406.3,0.00026027,2]
[400079577,1767073851094,-239.9474339,0.00026067,2]
[400079578,1767073851104,-2000.0,0.00026073,7]
[400079579,1767073851114,-224.55081306,0.00026092,110]
[400079580,1767073851133,-2160.0,0.000261,2]
[400079581,1767073851143,-194.445198,0.0002616,2]
[400079582,1767073851156,-1082.0,0.00026182,2]
[400079583,1767073851167,-285.40536442,0.00026301,2]
[400079584,1767073851178,-285.75153938,0.00026301,2]
[400079585,1767073851188,-1406.3,0.00026301,2]
[400079586,1767073851198,-167.63,0.000264,7]
[400079587,1767073851208,-1082.0,0.00026563,7]
[400079588,1767073851217,-700.0,0.0002657,7]
[400079589,1767073851226,-1085.0,0.00026572,7]
[400079590,1767073851236,-1406.3,0.00026575,2]
[400079591,1767073851246,-2260.0,0.00026648,2]
[400079592,1767073851255,-721.386967,0.00026676,2]
[400079593,1767073851264,-1082.0,0.00026727,2]
[400079594,1767073851274,-664.61,0.0002676,30]
[400079595,1767073851283,-1082.0,0.00026772,7]
[400079596,1767073851292,-500.0,0.00026786,7]
[400079597,1767073851301,-1406.3,0.00026849,2]
[400079598,1767073851310,-541.75256073,0.00026921,2]
[400079599,1767073851319,-1082.0,0.00026982,2]
[400079600,1767073851333,-1084.0,0.00027024,2]
[400079601,1767073851342,-1406.3,0.00027123,2]
[400079602,1767073851351,-404.0,0.00027125,2]
[400079603,1767073851361,-1082.0,0.00027143,2]
[400079604,1767073851372,-1082.0,0.00027183,2]
[400079605,1767073851382,-1780.0,0.00027196,2]
[400079606,1767073851391,-1082.0,0.00027303,2]
[400079607,1767073851401,-1085.0,0.00027313,2]
[400079608,1767073851412,-2000.0,0.00027339,7]
[400079609,1767073851421,-700.0,0.00027346,7]
[400079610,1767073851431,-568.73029361,0.0002739,7]
[400079611,1767073851440,-1406.3,0.00027397,2]
[400079612,1767073851449,-300.0,0.00027397,2]
[400079613,1767073851459,-300.0,0.00027397,2]
[400079614,1767073851468,-300.0,0.00027397,2]
[400079615,1767073851477,-300.0,0.00027397,2]
[400079616,1767073851486,-300.0,0.00027397,2]
[400079617,1767073851495,-300.0,0.00027397,2]
[400079618,1767073851504,-300.0,0.00027397,2]
[400079619,1767073851513,-300.0,0.00027397,2]
[400079620,1767073851522,-300.0,0.00027397,2]
[400079621,1767073851531,-300.0,0.00027397,2]
[400079622,1767073851540,-300.0,0.00027397,2]
[400079623,1767073851549,-300.0,0.00027397,2]
[400079624,1767073851559,-300.0,0.00027397,2]
[400079625,1767073851568,-300.0,0.00027397,2]
[400079626,1767073851577,-300.0,0.00027397,2]
[400079627,1767073851587,-300.0,0.00027397,2]
[400079628,1767073851596,-300.0,0.00027397,2]
[400079629,1767073851605,-300.0,0.00027397,2]
[400079630,1767073851615,-300.0,0.00027397,2]
[400079631,1767073851625,-300.0,0.00027397,2]
[400079632,1767073851635,-300.0,0.00027397,2]
[400079633,1767073851644,-300.0,0.00027397,2]
[400079634,1767073851654,-300.0,0.00027397,2]
[400079635,1767073851663,-300.0,0.00027397,2]
[400079636,1767073851672,-300.0,0.00027397,2]
[400079637,1767073851681,-300.0,0.00027397,2]
[400079638,1767073851691,-300.0,0.00027397,2]
[400079639,1767073851700,-300.0,0.00027397,2]
[400079640,1767073851709,-300.0,0.00027397,2]
[400079641,1767073851718,-300.0,0.00027397,2]
[400079642,1767073851727,-300.0,0.00027397,2]
[400079643,1767073851736,-300.0,0.00027397,2]
[400079644,1767073851745,-151.0,0.00027397,7]
[400079645,1767073851755,-151.0,0.00027397,7]
[400079646,1767073851764,-151.0,0.00027397,7]
[400079647,1767073851774,-151.0,0.00027397,7]
[400079648,1767073851783,-151.0,0.00027397,7]
[400079649,1767073851792,-151.0,0.00027397,7]
[400079650,1767073851801,-151.0,0.00027397,7]
[400079651,1767073851811,-151.0,0.00027397,7]
[400079652,1767073851820,-500.0,0.00027397,5]
[400079653,1767073851829,-163.05,0.000274,7]
[400079654,1767073851838,-1409.93,0.000274,14]
[400079655,1767073851847,-9961.44,0.000274,2]
[400079656,1767073851857,-1082.0,0.00027403,2]
[400079657,1767073851866,-1084.0,0.00027408,2]
[400079658,1767073851875,-700.0,0.00027449,7]
[400079659,1767073851886,-700.0,0.00027452,7]
[400079660,1767073851895,-1082.0,0.0002746,2]
[400079661,1767073851904,-45904.70290236,0.000275,2]
[400079662,1767073851913,-166.34,0.000275,7]
[400079663,1767073851923,-15279.06072301,0.00027538,2]
[400079664,1767073851932,-1084.0,0.00027573,7]
[400079665,1767073851941,-1082.0,0.00027589,2]
[400079666,1767073851950,-1084.0,0.00027663,2]
[400079667,1767073851960,-1406.3,0.00027671,2]
[400079668,1767073851970,-1082.0,0.00027692,7]
[400079669,1767073851979,-500.0,0.00027698,7]
[400079670,1767073851988,-1000.0,0.00027777,5]
[400079671,1767073851998,-700.0,0.00027828,7]
[400079672,1767073852008,-830.76,0.00027875,30]
[400079673,1767073852018,-1084.0,0.00027882,2]
[400079674,1767073852027,-1406.3,0.00027945,2]
[400079675,1767073852037,-1000.0,0.00027945,5]
[400079676,1767073852046,-250.0,0.00027945,5]
[400079677,1767073852056,-15307.62179137,0.00028,2]
[400079678,1767073852065,-595.83744368,0.00028,2]
[400079679,1767073852075,-519.64420806,0.00028,2]
[400079680,1767073852084,-177.0,0.00028,27]
[400079681,1767073852094,-167.63,0.00028,7]
[400079682,1767073852103,-1082.0,0.00028015,2]
[400079683,1767073852112,-700.0,0.00028061,7]
[400079684,1767073852128,-700.0,0.00028072,7]
[400079685,1767073852137,-1406.3,0.00028219,2]
[400079686,1767073852147,-500.0,0.00028229,7]
[400079687,1767073852156,-1000.0,0.00028358,30]
[400079688,1767073852166,-1000.0,0.00028358,30]
[400079689,1767073852175,-579.0,0.00028358,30]
[400079690,1767073852185,-5000.0,0.00028399,15]
[400079691,1767073852195,-700.0,0.00028444,7]
[400079692,1767073852204,-172.96149317,0.0002849,5]
[400079693,1767073852214,-1341.07728692,0.00028493,5]
[400079694,1767073852223,-350.0,0.00028493,5]
[400079695,1767073852232,-229718.30083605,0.000285,7]
[400079696,1767073852242,-155.596196,0.000285,7]
[400079697,1767073852251,-151.0,0.000285,7]
[400079698,1767073852261,-151.0,0.000285,7]
[400079699,1767073852270,-893.168983,0.000285,7]
[400079700,1767073852279,-893.168983,0.000285,7]
[400079701,1767073852288,-893.168983,0.000285,7]
[400079702,1767073852301,-893.168983,0.000285,7]
[400079703,1767073852318,-151.0,0.000285,7]
[400079704,1767073852329,-151.0,0.000285,7]
[400079705,1767073852339,-151.0,0.000285,7]
[400079706,1767073852349,-151.0,0.000285,7]
[400079707,1767073852358,-238.1177,0.000285,7]
[400079708,1767073852368,-238.1177,0.000285,7]
[400079709,1767073852378,-238.1177,0.000285,7]
[400079710,1767073852388,-238.1177,0.000285,7]
[400079711,1767073852397,-151.0,0.000285,7]
[400079712,1767073852406,-151.0,0.000285,7]
[400079713,1767073852417,-151.0,0.000285,7]
[400079714,1767073852427,-151.0,0.000285,7]
[400079715,1767073852437,-151.377295,0.000285,7]
[400079716,1767073852447,-151.0,0.000285,7]
[400079717,1767073852457,-151.0,0.000285,7]
[400079718,1767073852466,-1055.258506,0.000285,7]
[400079719,1767073852476,-1055.258506,0.000285,7]
[400079720,1767073852485,-1055.258506,0.000285,7]
[400079721,1767073852568,-1055.258506,0.000285,7]
[400079722,1767073852578,-500.15351,0.000285,7]
[400079723,1767073852589,-500.15351,0.000285,7]
[400079724,1767073852599,-500.15351,0.000285,7]
[400079725,1767073852609,-500.15351,0.000285,7]
[400079726,1767073852618,-151.0,0.000285,7]
[400079727,1767073852629,-219.903846,0.000285,7]
[400079728,1767073852639,-2000.0,0.00028605,7]
[400079729,1767073852648,-404.0,0.00028635,3]
[400079730,1767073852658,-157.0,0.000287,30]
[400079731,1767073852668,-165.26,0.000287,2]
[400079732,1767073852678,-12725.54,0.000287,3]
[400079733,1767073852687,-700.0,0.0002871,7]
[400079734,1767073852697,-3256.62662481,0.0002876,2]
[400079735,1767073852707,-19127.78853029,0.0002876,2]
[400079736,1767073852717,-700.0,0.00028761,7]
[400079737,1767073852727,-333614.75325092,0.000288,3]
[400079738,1767073852736,-172.33062748,0.000288,7]
[400079739,1767073852746,-567.81,0.000288,7]
[400079740,1767073852755,-151.0,0.000288,7]
[400079741,1767073852766,-153.658102,0.000288,7]
[400079742,1767073852776,-893.168983,0.000288,7]
[400079743,1767073852785,-893.168983,0.000288,7]
[400079744,1767073852795,-893.168983,0.000288,7]
[400079745,1767073852804,-893.168992,0.000288,7]
[400079746,1767073852814,-151.0,0.000288,7]
[400079747,1767073852824,-151.0,0.000288,7]
[400079748,1767073852835,-151.0,0.000288,7]
[400079749,1767073852845,-151.0,0.000288,7]
[400079750,1767073852855,-238.1177,0.000288,7]
[400079751,1767073852865,-238.1177,0.000288,7]
[400079752,1767073852875,-238.1177,0.000288,7]
[400079753,1767073852886,-238.117691,0.000288,7]
[400079754,1767073852896,-1055.258506,0.000288,7]
[400079755,1767073852906,-1055.258506,0.000288,7]
[400079756,1767073852916,-1055.258506,0.000288,7]
[400079757,1767073852926,-1055.25851,0.000288,7]
[400079758,1767073852936,-500.15351,0.000288,7]
[400079759,1767073852946,-500.15351,0.000288,7]
[400079760,1767073852956,-500.15351,0.000288,7]
[400079761,1767073852966,-500.153508,0.000288,7]
[400079762,1767073852976,-151.0,0.000288,7]
[400079763,1767073852986,-154.95,0.000288,2]
[400079764,1767073852995,-700.0,0.00028802,7]
[400079765,1767073853005,-665.07279349,0.00028815,2]
[400079766,1767073853014,-700.0,0.00028818,7]
[400079767,1767073853024,-154.95,0.000289,2]
[400079768,1767073853033,-584.90099477,0.00028921,2]
[400079769,1767073853042,-15279.06072301,0.00028957,2]
[400079770,1767073853052,-2225.14761447,0.0002896,120]
[400079771,1767073853062,-996.91,0.0002899,30]
[400079772,1767073853072,-889.49824385,0.00029,2]
[400079773,1767073853082,-28341.24003385,0.00029,20]
[400079774,1767073853091,-2406.38515982,0.00029,10]
[400079775,1767073853101,-206.01879,0.00029,120]
[400079776,1767073853110,-154.95,0.00029,2]
[400079777,1767073853120,-275.104005,0.00029005,60]
[400079778,1767073853130,-450.0,0.00029041,5]
[400079779,1767073853140,-154.95,0.000291,2]
[400079780,1767073853149,-1409.93,0.000292,14]
[400079781,1767073853159,-9961.44,0.000292,2]
[400079782,1767073853169,-154.95,0.000292,2]
[400079783,1767073853179,-154.95,0.000293,2]
[400079784,1767073853188,-154.95,0.000294,2]
[400079785,1767073853198,-384.21694444,0.000295,120]
[400079786,1767073853208,-154.95,0.000295,2]
[400079787,1767073853218,-700.0,0.00029541,7]
[400079788,1767073853228,-550.0,0.00029589,5]
[400079789,1767073853237,-221.0985825,0.000296,2]
[400079790,1767073853247,-884.39433001,0.000296,2]
[400079791,1767073853256,-1989.88724252,0.000296,2]
[400079792,1767073853266,-3537.57732003,0.000296,2]
[400079793,1767073853276,-414.88383824,0.000296,2]
[400079794,1767073853286,-645.39061211,0.000296,2]
[400079795,1767073853295,-1161.70310179,0.000296,2]
[400079796,1767073853305,-2065.24995874,0.000296,2]
[400079797,1767073853315,-3226.95306054,0.000296,2]
[400079798,1767073853325,-154.95,0.000296,2]
[400079799,1767073853337,-167.63,0.000297,7]
[400079800,1767073853347,-12725.54,0.000297,5]
[400079801,1767073853356,-154.95,0.000297,2]
[400079802,1767073853367,-154.95,0.000298,2]
[400079803,1767073853377,-2000.0,0.00029871,7]
[400079804,1767073853388,-154.95,0.000299,2]
[400079805,1767073853399,-700.0,0.00029923,7]
[400079806,1767073853408,-412.34289824,0.0003,10]
[400079807,1767073853418,-263.0797124,0.0003,2]
[400079808,1767073853427,-47474.13072234,0.0003,2]
[400079809,1767073853437,-428.14042977,0.0003,120]
[400079810,1767073853447,-843.31673468,0.0003,30]
[400079811,1767073853456,-385.78785205,0.0003,120]
[400079812,1767073853466,-1500.0,0.0003,45]
[400079813,1767073853476,-509.61616711,0.0003,30]
[400079814,1767073853486,-265.86918879,0.0003,120]
[400079815,1767073853496,-13109.52834209,0.0003,120]
[400079816,1767073853506,-706.67383558,0.0003,120]
[400079817,1767073853516,-165.26,0.0003,2]
[400079818,1767073853526,-200.0,0.0003,120]
[400079819,1767073853538,-2000.01,0.0003,30]
[400079820,1767073853548,-188.0,0.0003,14]
[400079821,1767073853557,-284.92902915,0.000301,120]
[400079822,1767073853573,-1002.0,0.000301,30]
[400079823,1767073853583,-1163.06,0.00030105,30]
[400079824,1767073853592,-650.0,0.00030137,5]
[400079825,1767073853602,-404.0,0.00030144,4]
[400079826,1767073853611,-567.81,0.000303,7]
[400079827,1767073853621,-700.0,0.00030346,7]
[400079828,1767073853631,-15279.06072301,0.00030376,2]
[400079829,1767073853640,-188.0,0.00030411,14]
[400079830,1767073853650,-250.0,0.00030557,2]
[400079831,1767073853660,-500.0,0.00030557,2]
[400079832,1767073853670,-264.27926234,0.00030557,2]
[400079833,1767073853679,-500.0,0.00030557,2]
[400079834,1767073853689,-500.0,0.00030557,2]
[400079835,1767073853700,-500.0,0.00030557,2]
[400079836,1767073853710,-152.94870132,0.00030557,2]
[400079837,1767073853720,-500.0,0.00030557,2]
[400079838,1767073853730,-500.0,0.00030557,2]
[400079839,1767073853741,-500.0,0.00030557,2]
[400079840,1767073853751,-500.0,0.00030557,2]
[400079841,1767073853760,-500.0,0.00030557,2]
[400079842,1767073853770,-530.52894229,0.00030557,2]
[400079843,1767073853780,-500.0,0.00030557,2]
[400079844,1767073853790,-151.0,0.00030557,2]
[400079845,1767073853800,-500.0,0.00030557,2]
[400079846,1767073853811,-151.0,0.00030557,2]
[400079847,1767073853821,-500.0,0.00030557,2]
[400079848,1767073853831,-151.0,0.00030557,2]
[400079849,1767073853841,-500.0,0.00030557,2]
[400079850,1767073853850,-151.0,0.00030557,2]
[400079851,1767073853860,-500.0,0.00030557,2]
[400079852,1767073853872,-151.0,0.00030557,2]
[400079853,1767073853884,-500.0,0.00030557,2]
[400079854,1767073853894,-151.0,0.00030557,2]
[400079855,1767073853904,-500.0,0.00030557,2]
[400079856,1767073853914,-151.0,0.00030557,2]
[400079857,1767073853924,-151.0,0.00030557,2]
[400079858,1767073853934,-500.0,0.00030557,2]
[400079859,1767073853944,-151.0,0.00030557,2]
[400079860,1767073853953,-496.47127164,0.00030557,2]
[400079861,1767073853962,-151.0,0.00030557,2]
[400079862,1767073853972,-151.0,0.00030557,2]
[400079863,1767073853982,-151.0,0.00030557,2]
[400079864,1767073853999,-151.0,0.00030557,2]
[400079865,1767073854009,-2398.4119403,0.00030557,2]
[400079866,1767073854019,-151.0,0.00030557,2]
[400079867,1767073854029,-151.0,0.00030557,2]
[400079868,1767073854039,-260.43714474,0.00030557,2]
[400079869,1767073854049,-183.51906813,0.00030557,2]
[400079870,1767073854060,-700.0,0.00030601,7]
[400079871,1767073854071,-750.0,0.00030685,5]
[400079872,1767073854081,-163.05,0.000307,7]
[400079873,1767073854165,-1409.93,0.000307,14]